lending/lending_fUSD_20250719
["ID","MTS","AMOUNT","RATE_DAILY","PERIOD"]
[373335487,1752951056059,-480.0,0.00019287,2]
[373335488,1752951056069,-480.0,0.00019287,2]
[373335489,1752951056081,-480.0,0.00019287,2]
[373335490,1752951056093,-493.08,0.00019287,2]
[373335491,1752951056109,-480.0,0.00019287,2]
[373335492,1752951056118,-480.0,0.00019287,2]
[373335493,1752951056128,-480.0,0.00019287,2]
[373335494,1752951056137,-480.0,0.00019287,2]
[373335495,1752951056148,-480.0,0.00019287,2]
[373335496,1752951056158,-480.0,0.00019287,2]
[373335497,1752951056168,-480.0,0.00019287,2]
[373335498,1752951056177,-969.76,0.00019287,2]
[373335499,1752951056187,-480.0,0.00019287,2]
[373335500,1752951056196,-480.0,0.00019287,2]
[373335501,1752951056205,-223.73230856,0.00019287,2]
[373335502,1752951056215,-480.0,0.00019287,2]
[373335503,1752951056225,-607.72,0.00019287,2]
[373335504,1752951056235,-480.0,0.00019287,2]
[373335505,1752951056244,-480.0,0.00019287,2]
[373335506,1752951056254,-480.0,0.00019287,2]
[373335507,1752951056263,-480.0,0.00019287,2]
[373335508,1752951056273,-548.62,0.00019287,2]
[373335509,1752951056282,-574.22860803,0.00019287,2]
[373335510,1752951056291,-480.0,0.00019287,2]
[373335511,1752951056301,-480.0,0.00019287,2]
[373335512,1752951056310,-480.0,0.00019287,2]
[373335513,1752951056319,-606.53,0.00019287,2]
[373335514,1752951056328,-480.0,0.00019287,2]
[373335515,1752951056337,-480.0,0.00019287,2]
[373335516,1752951056347,-480.0,0.00019287,2]
[373335517,1752951056357,-480.0,0.00019287,2]
[373335518,1752951056366,-480.0,0.00019287,2]
[373335519,1752951056376,-480.0,0.00019287,2]
[373335520,1752951056385,-480.0,0.00019287,2]
[373335521,1752951056394,-480.0,0.00019287,2]
[373335522,1752951056403,-538.74,0.00019287,2]
[373335523,1752951056413,-480.0,0.00019287,2]
[373335524,1752951056422,-480.0,0.00019287,2]
[373335525,1752951056431,-440.0,0.00019287,2]
[373335526,1752951056440,-480.0,0.00019287,2]
[373335527,1752951056450,-440.0,0.00019287,2]
[373335528,1752951056459,-480.0,0.00019287,2]
[373335529,1752951056468,-480.0,0.00019287,2]
[373335530,1752951056478,-480.0,0.00019287,2]
[373335531,1752951056488,-480.0,0.00019287,2]
[373335532,1752951056498,-480.0,0.00019287,2]
[373335533,1752951056507,-480.0,0.00019287,2]
[373335534,1752951056517,-480.0,0.00019287,2]
[373335535,1752951056527,-440.0,0.00019287,2]
[373335536,1752951056548,-480.0,0.00019287,2]
[373335537,1752951056560,-480.0,0.00019287,2]
[373335538,1752951056572,-480.0,0.00019287,2]
[373335539,1752951056582,-540.78,0.00019287,2]
[373335540,1752951056591,-596.33,0.00019287,2]
[373335541,1752951056601,-480.0,0.00019287,2]
[373335542,1752951056611,-480.0,0.00019287,2]
[373335543,1752951056620,-462.0,0.00019287,2]
[373335544,1752951056630,-480.0,0.00019287,2]
[373335545,1752951056640,-382.93407382,0.00019287,2]
[373335546,1752951056651,-480.0,0.00019287,2]
[373335547,1752951056661,-480.0,0.00019287,2]
[373335548,1752951056670,-480.0,0.00019287,2]
[373335549,1752951056680,-480.0,0.00019287,2]
[373335550,1752951056690,-480.0,0.00019287,2]
[373335551,1752951056703,-480.0,0.00019287,2]
[373335552,1752951056712,-480.0,0.00019287,2]
[373335553,1752951056722,-595.95,0.00019287,2]
[373335554,1752951056732,-480.0,0.00019287,2]
[373335555,1752951056743,-480.0,0.00019287,2]
[373335556,1752951056753,-480.0,0.00019287,2]
[373335557,1752951056762,-480.0,0.00019287,2]
[373335558,1752951056772,-320.0,0.00019287,2]
[373335559,1752951056781,-480.0,0.00019287,2]
[373335560,1752951056792,-480.0,0.00019287,2]
[373335561,1752951056805,-480.0,0.00019287,2]
[373335562,1752951056815,-480.0,0.00019287,2]
[373335563,1752951056824,-480.0,0.00019287,2]
[373335564,1752951056833,-440.0,0.00019287,2]
[373335565,1752951056842,-480.0,0.00019287,2]
[373335566,1752951056851,-480.0,0.00019287,2]
[373335567,1752951056861,-400.0,0.00019287,2]
[373335568,1752951056870,-480.0,0.00019287,2]
[373335569,1752951056879,-498.77,0.00019287,2]
[373335570,1752951056888,-480.0,0.00019287,2]
[373335571,1752951056898,-480.0,0.00019287,2]
[373335572,1752951056907,-480.0,0.00019287,2]
[373335573,1752951056916,-480.0,0.00019287,2]
[373335574,1752951056926,-480.0,0.00019287,2]
[373335575,1752951056935,-480.0,0.00019287,2]
[373335576,1752951056944,-400.0,0.00019287,2]
[373335577,1752951056955,-480.0,0.00019287,2]
[373335578,1752951056966,-400.0,0.00019287,2]
[373335579,1752951056976,-480.0,0.00019287,2]
[373335580,1752951056985,-480.0,0.00019287,2]
[373335581,1752951056995,-480.0,0.00019287,2]
[373335582,1752951057004,-400.0,0.00019287,2]
[373335583,1752951057013,-480.0,0.00019287,2]
[373335584,1752951057023,-480.0,0.00019287,2]
[373335585,1752951057033,-480.0,0.00019287,2]
[373335586,1752951057043,-227.94660228,0.00019287,2]
[373335587,1752951057055,-480.0,0.00019287,2]
[373335588,1752951057064,-358.82789769,0.00019287,2]
[373335589,1752951057074,-480.0,0.00019287,2]
[373335590,1752951057084,-480.0,0.00019287,2]
[373335591,1752951057094,-280.0,0.00019287,2]
[373335592,1752951057103,-564.38,0.00019287,2]
[373335593,1752951057112,-480.0,0.00019287,2]
[373335594,1752951057122,-561.77,0.00019287,2]
[373335595,1752951057131,-480.0,0.00019287,2]
[373335596,1752951057141,-480.0,0.00019287,2]
[373335597,1752951057150,-480.0,0.00019287,2]
[373335598,1752951057160,-480.0,0.00019287,2]
[373335599,1752951057177,-480.0,0.00019287,2]
[373335600,1752951057186,-480.0,0.00019287,2]
[373335601,1752951057195,-340.0,0.00019287,2]
[373335602,1752951057204,-480.0,0.00019287,2]
[373335603,1752951057214,-480.0,0.00019287,2]
[373335604,1752951057223,-480.0,0.00019287,2]
[373335605,1752951057233,-480.0,0.00019287,2]
[373335606,1752951057242,-584.84,0.00019287,2]
[373335607,1752951057251,-625.76,0.00019287,2]
[373335608,1752951057261,-480.0,0.00019287,2]
[373335609,1752951057271,-480.0,0.00019287,2]
[373335610,1752951057280,-480.0,0.00019287,2]
[373335611,1752951057289,-899.17,0.00019287,2]
[373335612,1752951057300,-480.0,0.00019287,2]
[373335613,1752951057310,-480.0,0.00019287,2]
[373335614,1752951057321,-480.0,0.00019287,2]
[373335615,1752951057331,-480.0,0.00019287,2]
[373335616,1752951057341,-480.0,0.00019287,2]
[373335617,1752951057351,-480.0,0.00019287,2]
[373335618,1752951057360,-480.0,0.00019287,2]
[373335619,1752951057369,-944.76,0.00019287,2]
[373335620,1752951057378,-480.0,0.00019287,2]
[373335621,1752951057387,-480.0,0.00019287,2]
[373335622,1752951057396,-491.56,0.00019287,2]
[373335623,1752951057406,-480.0,0.00019287,2]
[373335624,1752951057415,-440.0,0.00019287,2]
[373335625,1752951057424,-480.0,0.00019287,2]
[373335626,1752951057433,-480.0,0.00019287,2]
[373335627,1752951057442,-2055.11,0.00019287,2]
[373335628,1752951057451,-360.0,0.00019287,2]
[373335629,1752951057461,-480.0,0.00019287,2]
[373335630,1752951057470,-1163.514533,0.00019287,2]
[373335631,1752951057480,-480.0,0.00019287,2]
[373335632,1752951057490,-480.0,0.00019287,2]
[373335633,1752951057500,-740.49,0.00019287,2]
[373335634,1752951057510,-667.95,0.00019287,2]
[373335635,1752951057519,-1039.59,0.00019287,2]
[373335636,1752951057528,-480.0,0.00019287,2]
[373335637,1752951057538,-500.71,0.00019287,2]
[373335638,1752951057547,-872.76,0.00019287,2]
[373335639,1752951057556,-1098.520901,0.00019287,2]
[373335640,1752951057565,-1076.103525,0.00019287,2]
[373335641,1752951057575,-480.0,0.00019287,2]
[373335642,1752951057584,-1168.93,0.00019287,2]
[373335643,1752951057597,-480.0,0.00019287,2]
[373335644,1752951057612,-923.58,0.00019287,2]
[373335645,1752951057623,-480.0,0.00019287,2]
[373335646,1752951057632,-415.67,0.00019287,2]
[373335647,1752951057641,-480.0,0.00019287,2]
[373335648,1752951057650,-891.2,0.00019287,2]
[373335649,1752951057659,-1331.66,0.00019287,2]
[373335650,1752951057669,-4036.36,0.00019287,2]
[373335651,1752951057678,-480.0,0.00019287,2]
[373335652,1752951057687,-571.4,0.00019287,2]
[373335653,1752951057701,-480.0,0.00019287,2]
[373335654,1752951057711,-932.44,0.00019287,2]
[373335655,1752951057722,-480.0,0.00019287,2]
[373335656,1752951057732,-480.0,0.00019287,2]
[373335657,1752951057741,-497.91054709,0.00019287,2]
[373335658,1752951057750,-480.0,0.00019287,2]
[373335659,1752951057759,-480.0,0.00019287,2]
[373335660,1752951057769,-1082.18,0.00019287,2]
[373335661,1752951057778,-480.0,0.00019287,2]
[373335662,1752951057787,-480.0,0.00019287,2]
[373335663,1752951057796,-480.0,0.00019287,2]
[373335664,1752951057805,-480.0,0.00019287,2]
[373335665,1752951057814,-1769.75,0.00019287,2]
[373335666,1752951057823,-660.12,0.00019287,2]
[373335667,1752951057832,-935.22,0.00019287,2]
[373335668,1752951057841,-480.0,0.00019287,2]
[373335669,1752951057851,-1006.09,0.00019287,2]
[373335670,1752951057860,-480.0,0.00019287,2]
[373335671,1752951057869,-480.0,0.00019287,2]
[373335672,1752951057878,-480.0,0.00019287,2]
[373335673,1752951057887,-598.02,0.00019287,2]
[373335674,1752951057897,-480.0,0.00019287,2]
[373335675,1752951057906,-1289.68,0.00019287,2]
[373335676,1752951057915,-480.0,0.00019287,2]
[373335677,1752951057924,-730.1,0.00019287,2]
[373335678,1752951057934,-1350.29,0.00019287,2]
[373335679,1752951057943,-1420.69,0.00019287,2]
[373335680,1752951057952,-480.0,0.00019287,2]
[373335681,1752951057961,-480.0,0.00019287,2]
[373335682,1752951057970,-1057.02,0.00019287,2]
[373335683,1752951057979,-480.0,0.00019287,2]
[373335684,1752951057988,-498.46,0.00019287,2]
[373335685,1752951057997,-440.0,0.00019287,2]
[373335686,1752951058006,-480.0,0.00019287,2]
[373335687,1752951058015,-714.44,0.00019287,2]
[373335688,1752951058024,-480.0,0.00019287,2]
[373335689,1752951058034,-480.0,0.00019287,2]
[373335690,1752951058043,-480.0,0.00019287,2]
[373335691,1752951058052,-480.0,0.00019287,2]
[373335692,1752951058061,-480.0,0.00019287,2]
[373335693,1752951058070,-480.0,0.00019287,2]
[373335694,1752951058079,-480.0,0.00019287,2]
[373335695,1752951058089,-1044.2,0.00019287,2]
[373335696,1752951058098,-480.0,0.00019287,2]
[373335697,1752951058107,-480.0,0.00019287,2]
[373335698,1752951058117,-380.0,0.00019287,2]
[373335699,1752951058126,-480.0,0.00019287,2]
[373335700,1752951058135,-480.0,0.00019287,2]
[373335701,1752951058147,-1042.38,0.00019287,2]
[373335702,1752951058157,-480.0,0.00019287,2]
[373335703,1752951058169,-728.63,0.00019287,2]
[373335704,1752951058180,-480.0,0.00019287,2]
[373335705,1752951058189,-1734.68,0.00019287,2]
[373335706,1752951058199,-832.36,0.00019287,2]
[373335707,1752951058208,-480.0,0.00019287,2]
[373335708,1752951058218,-181.25905012,0.00019287,2]
[373335709,1752951058227,-480.0,0.00019287,2]
[373335710,1752951058238,-480.0,0.00019287,2]
[373335711,1752951058248,-480.0,0.00019287,2]
[373335712,1752951058258,-1215.27,0.00019287,2]
[373335713,1752951058269,-480.0,0.00019287,2]
[373335714,1752951058280,-480.0,0.00019287,2]
[373335715,1752951058289,-400.0,0.00019287,2]
[373335716,1752951058300,-1468.88,0.00019287,2]
[373335717,1752951058310,-480.0,0.00019287,2]
[373335718,1752951058321,-745.43,0.00019287,2]
[373335719,1752951058331,-480.0,0.00019287,2]
[373335720,1752951058340,-480.0,0.00019287,2]
[373335721,1752951058350,-480.0,0.00019287,2]
[373335722,1752951058359,-480.0,0.00019287,2]
[373335723,1752951058369,-400.0,0.00019287,2]
[373335724,1752951058378,-1919.49,0.00019287,2]
[373335725,1752951058388,-582.8,0.00019287,2]
[373335726,1752951058397,-772.14,0.00019287,2]
[373335727,1752951058407,-911.99,0.00019287,2]
[373335728,1752951058417,-480.0,0.00019287,2]
[373335729,1752951058427,-480.0,0.00019287,2]
[373335730,1752951058436,-480.0,0.00019287,2]
[373335731,1752951058446,-811.66,0.00019287,2]
[373335732,1752951058455,-802.36,0.00019287,2]
[373335733,1752951058465,-480.0,0.00019287,2]
[373335734,1752951058475,-480.0,0.00019287,2]
[373335735,1752951058486,-480.0,0.00019287,2]
[373335736,1752951058495,-480.0,0.00019287,2]
[373335737,1752951058505,-2072.01,0.00019287,2]
[373335738,1752951058515,-2070.42,0.00019287,2]
[373335739,1752951058526,-2808.72,0.00019287,2]
[373335740,1752951058536,-480.0,0.00019287,2]
[373335741,1752951058545,-682.12,0.00019287,2]
[373335742,1752951058555,-529.4,0.00019287,2]
[373335743,1752951058565,-480.0,0.00019287,2]
[373335744,1752951058575,-480.0,0.00019287,2]
[373335745,1752951058585,-480.0,0.00019287,2]
[373335746,1752951058595,-1647.33,0.00019287,2]
[373335747,1752951058605,-480.0,0.00019287,2]
[373335748,1752951058614,-480.0,0.00019287,2]
[373335749,1752951058625,-1227.72,0.00019287,2]
[373335750,1752951058635,-480.0,0.00019287,2]
[373335751,1752951058646,-1003.58,0.00019287,2]
[373335752,1752951058656,-480.0,0.00019287,2]
[373335753,1752951058665,-1320.44,0.00019287,2]
[373335754,1752951058675,-790.54,0.00019287,2]
[373335755,1752951058686,-480.0,0.00019287,2]
[373335756,1752951058699,-480.0,0.00019287,2]
[373335757,1752951058709,-480.0,0.00019287,2]
[373335758,1752951058718,-1921.26,0.00019287,2]
[373335759,1752951058729,-480.0,0.00019287,2]
[373335760,1752951058741,-480.0,0.00019287,2]
[373335761,1752951058751,-480.0,0.00019287,2]
[373335762,1752951058760,-480.0,0.00019287,2]
[373335763,1752951058772,-480.0,0.00019287,2]
[373335764,1752951058782,-480.0,0.00019287,2]
[373335765,1752951058791,-480.0,0.00019287,2]
[373335766,1752951058801,-480.0,0.00019287,2]
[373335767,1752951058810,-480.0,0.00019287,2]
[373335768,1752951058820,-744.36,0.00019287,2]
[373335769,1752951058829,-440.0,0.00019287,2]
[373335770,1752951058839,-480.0,0.00019287,2]
[373335771,1752951058849,-1066.46,0.00019287,2]
[373335772,1752951058858,-480.0,0.00019287,2]
[373335773,1752951058868,-480.0,0.00019287,2]
[373335774,1752951058877,-480.0,0.00019287,2]
[373335775,1752951058887,-480.0,0.00019287,2]
[373335776,1752951058898,-3911.5,0.00019287,2]
[373335777,1752951058907,-480.0,0.00019287,2]
[373335778,1752951058917,-671.12,0.00019287,2]
[373335779,1752951058926,-480.0,0.00019287,2]
[373335780,1752951058936,-606.46,0.00019287,2]
[373335781,1752951058946,-3397.68,0.00019287,2]
[373335782,1752951058955,-480.0,0.00019287,2]
[373335783,1752951058965,-480.0,0.00019287,2]
[373335784,1752951058975,-537.22,0.00019287,2]
[373335785,1752951058989,-480.0,0.00019287,2]
[373335786,1752951059000,-1207.92,0.00019287,2]
[373335787,1752951059010,-480.0,0.00019287,2]
[373335788,1752951059020,-480.0,0.00019287,2]
[373335789,1752951059030,-480.0,0.00019287,2]
[373335790,1752951059040,-480.0,0.00019287,2]
[373335791,1752951059050,-650.88,0.00019287,2]
[373335792,1752951059059,-696.33,0.00019287,2]
[373335793,1752951059070,-480.0,0.00019287,2]
[373335794,1752951059079,-815.11,0.00019287,2]
[373335795,1752951059090,-480.0,0.00019287,2]
[373335796,1752951059099,-360.0,0.00019287,2]
[373335797,1752951059109,-480.0,0.00019287,2]
[373335798,1752951059119,-1597.92,0.00019287,2]
[373335799,1752951059129,-480.0,0.00019287,2]
[373335800,1752951059140,-911.03,0.00019287,2]
[373335801,1752951059150,-480.0,0.00019287,2]
[373335802,1752951059160,-317.34932129,0.00019287,2]
[373335803,1752951059170,-480.0,0.00019287,2]
[373335804,1752951059180,-480.0,0.00019287,2]
[373335805,1752951059190,-480.0,0.00019287,2]
[373335806,1752951059201,-340.0,0.00019287,2]
[373335807,1752951059211,-1507.64,0.00019287,2]
[373335808,1752951059222,-480.0,0.00019287,2]
[373335809,1752951059234,-480.0,0.00019287,2]
[373335810,1752951059244,-480.0,0.00019287,2]
[373335811,1752951059254,-480.0,0.00019287,2]
[373335812,1752951059264,-480.0,0.00019287,2]
[373335813,1752951059274,-480.0,0.00019287,2]
[373335814,1752951059284,-3506.64,0.00019287,2]
[373335815,1752951059294,-480.0,0.00019287,2]
[373335816,1752951059303,-480.0,0.00019287,2]
[373335817,1752951059313,-955.02,0.00019287,2]
[373335818,1752951059323,-860.57,0.00019287,2]
[373335819,1752951059332,-684.08,0.00019287,2]
[373335820,1752951059347,-480.0,0.00019287,2]
[373335821,1752951059357,-440.0,0.00019287,2]
[373335822,1752951059367,-1174.8,0.00019287,2]
[373335823,1752951059378,-480.0,0.00019287,2]
[373335824,1752951059388,-440.0,0.00019287,2]
[373335825,1752951059397,-480.0,0.00019287,2]
[373335826,1752951059407,-1865.79,0.00019287,2]
[373335827,1752951059417,-480.0,0.00019287,2]
[373335828,1752951059427,-480.0,0.00019287,2]
[373335829,1752951059437,-480.0,0.00019287,2]
[373335830,1752951059447,-480.0,0.00019287,2]
[373335831,1752951059457,-480.0,0.00019287,2]
[373335832,1752951059467,-911.28,0.00019287,2]
[373335833,1752951059477,-480.0,0.00019287,2]
[373335834,1752951059488,-480.0,0.00019287,2]
[373335835,1752951059499,-2051.16,0.00019287,2]
[373335836,1752951059509,-418.3731164,0.00019287,2]
[373335837,1752951059519,-619.72,0.00019287,2]
[373335838,1752951059529,-480.0,0.00019287,2]
[373335839,1752951059540,-480.0,0.00019287,2]
[373335840,1752951059551,-480.0,0.00019287,2]
[373335841,1752951059560,-480.0,0.00019287,2]
[373335842,1752951059571,-1080.99,0.00019287,2]
[373335843,1752951059581,-480.0,0.00019287,2]
[373335844,1752951059590,-440.0,0.00019287,2]
[373335845,1752951059600,-1344.93,0.00019287,2]
[373335846,1752951059610,-911.85,0.00019287,2]
[373335847,1752951059620,-973.43,0.00019287,2]
[373335848,1752951059630,-480.0,0.00019287,2]
[373335849,1752951059640,-738.53,0.00019287,2]
[373335850,1752951059650,-480.0,0.00019287,2]
[373335851,1752951059660,-548.81,0.00019287,2]
[373335852,1752951059669,-480.0,0.00019287,2]
[373335853,1752951059679,-480.0,0.00019287,2]
[373335854,1752951059689,-480.0,0.00019287,2]
[373335855,1752951059702,-1284.48,0.00019287,2]
[373335856,1752951059712,-629.65,0.00019287,2]
[373335857,1752951059722,-1885.87,0.00019287,2]
[373335858,1752951059733,-527.51,0.00019287,2]
[373335859,1752951059743,-480.0,0.00019287,2]
[373335860,1752951059753,-480.0,0.00019287,2]
[373335861,1752951059763,-2159.57,0.00019287,2]
[373335862,1752951059772,-480.0,0.00019287,2]
[373335863,1752951059783,-480.0,0.00019287,2]
[373335864,1752951059792,-480.0,0.00019287,2]
[373335865,1752951059802,-1651.28,0.00019287,2]
[373335866,1752951059812,-627.08,0.00019287,2]
[373335867,1752951059822,-480.0,0.00019287,2]
[373335868,1752951059832,-480.0,0.00019287,2]
[373335869,1752951059842,-5891.65,0.00019287,2]
[373335870,1752951059851,-480.0,0.00019287,2]
[373335871,1752951059861,-1630.02,0.00019287,2]
[373335872,1752951059871,-511.1,0.00019287,2]
[373335873,1752951059881,-480.0,0.00019287,2]
[373335874,1752951059891,-1144.0,0.00019287,2]
[373335875,1752951059901,-480.0,0.00019287,2]
[373335876,1752951059911,-669.42,0.00019287,2]
[373335877,1752951059921,-480.0,0.00019287,2]
[373335878,1752951059930,-480.0,0.00019287,2]
[373335879,1752951059941,-480.0,0.00019287,2]
[373335880,1752951059951,-480.0,0.00019287,2]
[373335881,1752951059961,-440.0,0.00019287,2]
[373335882,1752951059971,-480.0,0.00019287,2]
[373335883,1752951059983,-480.0,0.00019287,2]
[373335884,1752951059993,-1202.06,0.00019287,2]
[373335885,1752951060002,-480.0,0.00019287,2]
[373335886,1752951060012,-2666.94,0.00019287,2]
[373335887,1752951060022,-480.0,0.00019287,2]
[373335888,1752951060032,-480.0,0.00019287,2]
[373335889,1752951060042,-480.0,0.00019287,2]
[373335890,1752951060052,-550.73,0.00019287,2]
[373335891,1752951060063,-480.0,0.00019287,2]
[373335892,1752951060073,-2146.84,0.00019287,2]
[373335893,1752951060083,-500.0,0.00019295,2]
[373335894,1752951060093,-500.0,0.00019295,2]
[373335895,1752951060103,-3969.8557,0.00019295,2]
[373335896,1752951060113,-480.0,0.00019296,2]
[373335897,1752951060123,-480.0,0.00019296,2]
[373335898,1752951060132,-1104.86,0.00019296,2]
[373335899,1752951060143,-753.45,0.00019296,2]
[373335900,1752951060152,-1197.88,0.00019296,2]
[373335901,1752951060162,-958.92,0.00019296,2]
[373335902,1752951060172,-968.45,0.00019296,2]
[373335903,1752951060182,-746.62,0.00019296,2]
[373335904,1752951060192,-495.37,0.00019296,2]
[373335905,1752951060202,-4514.76,0.00019296,2]
[373335906,1752951060212,-2256.04,0.00019296,2]
[373335907,1752951060222,-648.95,0.00019296,2]
[373335908,1752951060232,-4885.78,0.00019296,2]
[373335909,1752951060242,-1020.41,0.00019296,2]
[373335910,1752951060252,-661.88,0.00019296,2]
[373335911,1752951060262,-905.31,0.00019296,2]
[373335912,1752951060272,-3358.25,0.00019296,2]
[373335913,1752951060282,-2496.12,0.00019296,2]
[373335914,1752951060292,-2425.16,0.00019296,2]
[373335915,1752951060553,-831.12,0.00019296,2]
[373335916,1752951060564,-1000.0,0.00019296,2]
[373335917,1752951060573,-547.73,0.00019296,2]
[373335918,1752951060583,-3979.66,0.00019296,2]
[373335919,1752951060592,-1455.45,0.00019296,2]
[373335920,1752951060602,-1159.36,0.00019296,2]
[373335921,1752951060611,-480.0,0.00019296,2]
[373335922,1752951060620,-1314.35,0.00019296,2]
[373335923,1752951060630,-1043.52,0.00019296,2]
[373335924,1752951060639,-5801.49,0.00019296,2]
[373335925,1752951060649,-1026.18,0.00019296,2]
[373335926,1752951060658,-712.63,0.00019296,2]
[373335927,1752951060668,-2756.54,0.00019296,2]
[373335928,1752951060677,-769.91,0.00019296,2]
[373335929,1752951060687,-24509.03,0.00019296,2]
[373335930,1752951060701,-1679.68,0.00019296,2]
[373335931,1752951060710,-3380.31,0.00019296,2]
[373335932,1752951060720,-737.78,0.00019296,2]
[373335933,1752951060731,-1532.83,0.00019296,2]
[373335934,1752951060741,-2274.47,0.00019296,2]
[373335935,1752951060751,-2456.14,0.00019296,2]
[373335936,1752951060762,-480.0,0.00019296,2]
[373335937,1752951060773,-3175.01,0.00019296,2]
[373335938,1752951060783,-869.67,0.00019296,2]
[373335939,1752951060793,-665.88416414,0.00019297,2]
[373335940,1752951060802,-816.95522359,0.00019297,2]
[373335941,1752951060815,-150.0,0.00019333,2]
[373335942,1752951060825,-1680.0,0.00019338,2]
[373335943,1752951060835,-839.16344753,0.00019368,2]
[373335944,1752951060845,-210.82967408,0.00019368,2]
[373335945,1752951060854,-476.80070012,0.00019368,2]
[373335946,1752951060863,-160.0,0.00019368,2]
[373335947,1752951060873,-480.0,0.00019383,2]
[373335948,1752951060882,-480.0,0.00019383,2]
[373335949,1752951060892,-460.0,0.00019383,2]
[373335950,1752951060902,-524.00968572,0.00019383,2]
[373335951,1752951060911,-460.0,0.00019383,2]
[373335952,1752951060920,-480.0,0.00019383,2]
[373335953,1752951060929,-480.0,0.00019383,2]
[373335954,1752951060939,-460.0,0.00019383,2]
[373335955,1752951060949,-492.05493836,0.00019383,2]
[373335956,1752951060958,-461.67044171,0.00019383,2]
[373335957,1752951060967,-480.0,0.00019384,2]
[373335958,1752951060977,-480.0,0.00019384,2]
[373335959,1752951060987,-480.0,0.00019384,2]
[373335960,1752951060996,-200.0,0.00019384,2]
[373335961,1752951061005,-724.01472,0.00019384,2]
[373335962,1752951061015,-300.0,0.00019384,2]
[373335963,1752951061024,-200.0,0.00019384,2]
[373335964,1752951061034,-500.0,0.00019394,2]
[373335965,1752951061043,-500.0,0.00019394,2]
[373335966,1752951061053,-500.0,0.00019394,2]
[373335967,1752951061063,-500.0,0.00019394,2]
[373335968,1752951061072,-500.0,0.00019394,2]
[373335969,1752951061082,-500.0,0.00019394,2]
[373335970,1752951061092,-500.0,0.00019394,2]
[373335971,1752951061102,-500.0,0.00019394,2]
[373335972,1752951061111,-500.0,0.00019394,2]
[373335973,1752951061121,-500.0,0.00019396,2]
[373335974,1752951061131,-353.14800091,0.00019396,2]
[373335975,1752951061140,-500.0,0.00019396,2]
[373335976,1752951061149,-500.0,0.00019396,2]
[373335977,1752951061159,-500.0,0.00019396,2]
[373335978,1752951061170,-500.0,0.00019396,2]
[373335979,1752951061179,-1975.62,0.00019396,2]
[373335980,1752951061189,-480.0,0.00019397,2]
[373335981,1752951061199,-420.0,0.00019397,2]
[373335982,1752951061208,-480.0,0.00019397,2]
[373335983,1752951061218,-480.0,0.00019397,2]
[373335984,1752951061227,-480.0,0.00019397,2]
[373335985,1752951061238,-480.0,0.00019397,2]
[373335986,1752951061247,-480.0,0.00019397,2]